bitfinex/quotes_BTCUSD_20241211
["timestamp","ask_amount","ask_price","bid_price","bid_amount"]
[1733882736820,0.03285176,95999.0,95998.0,0.01132042]
[1733882737628,0.208298,96017.0,95999.0,0.208335]
[1733882737629,0.03285176,96008.0,95999.0,0.208335]
[1733882737912,0.0765,96014.0,95998.0,0.01132042]
[1733882737913,0.03285176,95999.0,95998.0,0.00055226]
[1733882739152,0.10935176,95999.0,95998.0,0.00055226]
[1733882739796,0.11135176,95999.0,95998.0,0.00055226]
[1733882740206,0.03285176,95975.0,95962.0,0.208415]
[1733882740472,0.03285176,95975.0,95964.0,0.208411]
[1733882740677,0.03285176,95975.0,95963.0,0.14732794]
[1733882740678,0.24124076,95975.0,95963.0,0.14732794]
[1733882740892,0.20841,95965.0,95963.0,0.0420027]
[1733882741085,0.20841,95965.0,95950.0,0.208441]
[1733882741086,0.03285176,95964.0,95950.0,0.208441]
[1733882741285,0.208418,95961.0,95945.0,0.208451]
[1733882741486,0.24126976,95961.0,95946.0,0.10532524]
[1733882741892,0.03285176,95961.0,95947.0,0.208448]
[1733882742092,0.03285176,95961.0,95954.0,0.208431]
[1733882742280,0.03285176,95961.0,95956.0,0.208428]
[1733882742733,0.03285176,95961.0,95955.0,0.03137562]
[1733882743178,0.03285176,95961.0,95956.0,0.208428]
[1733882743513,0.03285176,95961.0,95955.0,0.03137562]
[1733882744387,0.03285176,95961.0,95956.0,0.006]
[1733882744628,0.03285176,95961.0,95956.0,0.003]
[1733882745067,0.03285176,95961.0,95955.0,0.006]
[1733882745311,0.03285176,95961.0,95954.0,0.00016557]
[1733882745513,0.03285176,95961.0,95955.0,0.03669258]
[1733882745711,0.03285176,95961.0,95956.0,0.006]
[1733882746494,0.03285176,95957.0,95956.0,0.006]
[1733882747163,0.03285176,95957.0,95954.0,0.00016557]
[1733882747380,0.03285176,95966.0,95955.0,0.006]
[1733882747538,0.03285176,95967.0,95961.0,0.208417]
[1733882747787,0.03285176,95967.0,95962.0,0.0422844]
[1733882748150,0.03285176,95971.0,95962.0,0.0422844]
[1733882748294,0.03285176,95963.0,95962.0,0.0422844]
[1733882748497,0.03285176,95956.0,95954.0,0.00016557]
[1733882750278,0.03285176,95965.0,95954.0,0.00016557]
[1733882750530,0.03285176,95961.0,95955.0,0.20843]
[1733882750877,0.03285176,95961.0,95956.0,0.02086811]
[1733882751933,0.03285176,95961.0,95954.0,0.00016557]
[1733882752137,0.03285176,95961.0,95956.0,0.416856]
[1733882752539,0.03285176,95961.0,95954.0,0.00016557]
[1733882752711,0.24126976,95961.0,95954.0,0.00016557]
[1733882752941,0.208427,95957.0,95954.0,0.00016557]
[1733882753085,0.24126976,95961.0,95954.0,0.02333528]
[1733882753488,0.03285176,95961.0,95954.0,0.02333528]
[1733882753901,0.03285176,95961.0,95956.0,0.001]
[1733882754156,0.24127076,95961.0,95954.0,0.02333528]
[1733882754362,0.03285176,95956.0,95954.0,0.02333528]
[1733882754565,0.03285176,95956.0,95954.0,0.02433528]
[1733882755106,0.03285176,95956.0,95954.0,0.02333528]
[1733882757200,0.208431,95955.0,95954.0,0.00016557]
[1733882757402,0.31778276,95955.0,95954.0,0.00016557]
[1733882758684,0.425108,95955.0,95954.0,0.00016557]
[1733882760544,0.427108,95955.0,95954.0,0.00016557]
[1733882761897,0.32178276,95955.0,95954.0,0.00016557]
[1733882762347,0.03685176,95955.0,95954.0,0.00016557]
[1733882762763,0.142177,95955.0,95954.0,0.00016557]
[1733882762991,0.375077,95955.0,95954.0,0.00016557]
[1733882763237,0.225077,95955.0,95954.0,0.00016557]
[1733882763858,0.20085675,95955.0,95954.0,0.00016557]
[1733882764069,0.19022524,95955.0,95954.0,0.00016557]
[1733882764295,0.225077,95955.0,95954.0,0.00016557]
[1733882764498,0.223077,95955.0,95954.0,0.00016557]
[1733882764688,0.225077,95955.0,95954.0,0.00016557]
[1733882764823,0.223077,95955.0,95954.0,0.00016557]
[1733882765032,0.225077,95955.0,95954.0,0.00016557]
[1733882765668,0.0869,95955.0,95954.0,0.00016557]
[1733882766061,0.03685176,95955.0,95954.0,0.00016557]
[1733882767807,0.142177,95955.0,95954.0,0.00016557]
[1733882770863,0.3018213,95955.0,95954.0,0.00016557]
[1733882771276,0.225077,95955.0,95954.0,0.00016557]
[1733882772210,0.10932524,95955.0,95954.0,0.00016557]
[1733882772418,0.03685176,95955.0,95954.0,0.00016557]
[1733882772613,0.004,95955.0,95954.0,0.00016557]
[1733882772829,0.004,95955.0,95954.0,0.23159857]
[1733882773026,0.004,95955.0,95954.0,0.48288132]
[1733882774105,0.002,95955.0,95954.0,0.48288132]
[1733882774307,0.002,95955.0,95954.0,0.00116557]
[1733882774546,0.03285176,95956.0,95954.0,0.00116557]
[1733882775169,0.03285176,95956.0,95955.0,0.208431]
[1733882775462,0.03285176,95971.0,95954.0,0.00016557]
[1733882775584,0.0829,95990.0,95954.0,0.00016557]
[1733882775585,0.03285176,95967.0,95966.0,0.208407]
[1733882775788,0.03285176,95971.0,95966.0,0.2292477]
[1733882776034,0.03285176,95975.0,95968.0,0.208402]
[1733882776238,0.03285176,95975.0,95972.0,0.208391]
[1733882776448,0.03285176,95975.0,95966.0,0.0208407]
[1733882776654,0.0829,95990.0,95954.0,0.00016557]
[1733882776655,0.03285176,95959.0,95954.0,0.00016557]
[1733882776817,0.27059814,95990.0,95962.0,0.208414]
[1733882776818,0.03285176,95966.0,95962.0,0.208414]
[1733882777024,0.03285176,95955.0,95954.0,0.00016557]
[1733882777235,0.16230478,95955.0,95954.0,0.00016557]
[1733882777460,0.138177,95955.0,95954.0,0.00316557]
[1733882777669,0.138177,95955.0,95954.0,0.00016557]
[1733882778037,0.288177,95955.0,95954.0,0.00016557]
[1733882778712,0.292177,95955.0,95954.0,0.00116557]
[1733882778920,0.290177,95955.0,95954.0,0.00016557]
[1733882779108,0.138177,95955.0,95954.0,0.00016557]
[1733882779318,0.140177,95955.0,95954.0,0.00116557]
[1733882779432,0.10932524,95955.0,95954.0,0.00116557]
[1733882779635,0.142177,95955.0,95954.0,0.00116557]
[1733882780279,0.03685176,95955.0,95954.0,0.00116557]
[1733882780683,0.03285176,95955.0,95954.0,0.00016557]
[1733882780898,0.138177,95955.0,95954.0,0.00016557]
[1733882781206,0.144177,95955.0,95954.0,0.00116557]
[1733882781419,0.03485176,95955.0,95954.0,0.00016557]
[1733882781615,0.03285176,95955.0,95954.0,0.00016557]
[1733882781826,0.03685176,95955.0,95954.0,0.00016557]
[1733882782047,0.03485176,95955.0,95954.0,0.00016557]
[1733882782547,0.03685176,95955.0,95954.0,0.00116557]
[1733882782678,0.03485176,95955.0,95954.0,0.00016557]
[1733882782882,0.03485176,95955.0,95954.0,0.02103498]
[1733882783094,0.03485176,95955.0,95954.0,0.04403498]
[1733882783095,0.002,95955.0,95954.0,0.04403498]
[1733882783296,0.002,95955.0,95954.0,0.05460462]
[1733882783497,0.002,95955.0,95954.0,0.15992986]
[1733882783996,0.003,95955.0,95954.0,0.15992986]
[1733882784200,0.03285176,95975.0,95971.0,0.208394]
[1733882784377,0.03285176,95975.0,95972.0,0.0416797]
[1733882785895,0.03385176,95975.0,95972.0,0.0416797]
[1733882786522,0.03385176,95975.0,95973.0,0.208391]
[1733882786726,0.001,95975.0,95973.0,0.208391]
[1733882788188,0.03285176,95980.0,95973.0,0.416782]
[1733882788331,0.03285176,95980.0,95976.0,0.208384]
[1733882789111,0.03285176,95991.0,95987.0,0.416722]
[1733882789322,0.03285176,95991.0,95987.0,0.208361]
[1733882789996,0.000171,96000.0,95977.0,0.12832524]
[1733882789997,0.03302276,96000.0,95992.0,0.208349]
[1733882790199,0.03302276,96000.0,95992.0,0.416698]
[1733882790524,0.03302276,96000.0,95977.0,0.12832524]
[1733882790525,0.03357424,96000.0,95997.0,0.208338]
[1733882790651,0.03357424,96000.0,95998.0,0.0416685]
[1733882790856,0.03357424,96000.0,95998.0,0.2500045]
[1733882792243,0.00072248,96000.0,95998.0,0.2510045]
[1733882792460,0.00072248,96000.0,95999.0,0.023]
[1733882792970,0.00072248,96000.0,95999.0,0.12832524]
[1733882793182,0.00072248,96000.0,95999.0,0.18832944]
[1733882793419,0.00072248,96000.0,95999.0,0.33832944]
[1733882793623,0.00072248,96000.0,95999.0,0.45547768]
[1733882793830,0.00072248,96000.0,95999.0,0.50507768]
[1733882794036,0.00072248,96000.0,95999.0,0.23792944]
[1733882794653,0.00072248,96000.0,95999.0,0.23892944]
[1733882794853,0.03302276,96020.0,95999.0,0.23892944]
[1733882794854,0.000171,96020.0,96019.0,0.231292]
[1733882795006,0.000171,96020.0,96019.0,0.38057604]
[1733882796660,0.0001716,96040.0,96029.0,0.23127]
[1733882796872,0.0001716,96040.0,96029.0,0.33659524]
[1733882798393,0.0001716,96040.0,96029.0,0.33859524]
[1733882798608,0.0001716,96040.0,96029.0,0.39328216]
[1733882798811,0.0001716,96040.0,96029.0,0.39828216]
[1733882799012,0.0001716,96040.0,96029.0,0.39328216]
[1733882799419,0.0001716,96040.0,96029.0,0.40228216]
[1733882800043,0.0001716,96040.0,96029.0,0.40028216]
[1733882800152,0.0001716,96040.0,96029.0,0.40528216]
[1733882803432,0.03285176,96038.0,96029.0,0.1021068]
[1733882804576,0.03285176,96038.0,96029.0,0.0971068]
[1733882804810,0.03285176,96038.0,96029.0,0.0911068]
[1733882805142,0.03285176,96038.0,96029.0,0.0961068]
[1733882805361,0.03285176,96038.0,96029.0,0.0911068]
[1733882805734,0.03285176,96038.0,96029.0,0.0971068]
[1733882806054,0.0001716,96040.0,96029.0,0.19643204]
[1733882806277,0.0001716,96040.0,96029.0,0.20243204]
[1733882806709,0.0001716,96040.0,96029.0,0.19343204]
[1733882807153,0.0001716,96040.0,96029.0,0.19643204]
[1733882807673,0.0001716,96040.0,96029.0,0.19343204]
[1733882807892,0.0001716,96040.0,96029.0,0.19743204]
[1733882808298,0.0001716,96040.0,96029.0,0.20443204]
[1733882808504,0.0001716,96040.0,96029.0,0.19743204]
[1733882808712,0.0001716,96040.0,96029.0,0.0921068]
[1733882808713,0.03285176,96038.0,96029.0,0.0921068]
[1733882808927,0.03285176,96038.0,96029.0,0.1001068]
[1733882810980,0.0001716,96040.0,96029.0,0.1001068]
[1733882810981,0.0001716,96040.0,96029.0,0.20543204]
[1733882812474,0.0001716,96040.0,96029.0,0.20143204]
[1733882812685,0.0001716,96040.0,96029.0,0.19343204]
[1733882812885,0.0001716,96040.0,96029.0,0.20543204]
[1733882819460,0.03285176,96037.0,96029.0,0.0771068]
[1733882819669,0.0001716,96040.0,96029.0,0.012]
[1733882819670,0.03302336,96030.0,96029.0,0.012]
[1733882820580,0.03302336,96030.0,96029.0,0.008]
[1733882820791,0.2173486,96030.0,96029.0,0.008]
[1733882820995,0.2173486,96030.0,96029.0,0.009]
[1733882821825,0.2173486,96030.0,96029.0,0.001]
[1733882822233,0.03402336,96030.0,96029.0,0.001]
[1733882822360,0.03285176,96021.0,96020.0,8.56e-05]
[1733882822975,0.03285176,96021.0,96020.0,0.01048003]
[1733882823158,0.03285176,96021.0,96020.0,0.0427941]
[1733882823782,0.03285176,96021.0,96020.0,0.0447941]
[1733882823995,0.0041716,96030.0,96027.0,0.208274]
[1733882824433,0.0041716,96030.0,96027.0,0.416548]
[1733882824877,0.0001716,96030.0,96027.0,0.416548]
[1733882825997,0.03302336,96030.0,96027.0,0.21863706]
[1733882827015,0.03302336,96030.0,96027.0,0.42691106]
[1733882827239,0.03302336,96030.0,96029.0,0.20827]
[1733882827786,0.03302336,96030.0,96028.0,0.04269111]
[1733882828470,0.03302336,96030.0,96029.0,0.20827]
[1733882830148,0.0001716,96030.0,96029.0,0.20827]
[1733882830342,0.0001716,96030.0,96029.0,0.31359524]
[1733882830569,0.0001716,96030.0,96029.0,0.40108758]
[1733882830723,0.0001716,96030.0,96029.0,0.39708758]
[1733882831137,0.0001716,96030.0,96029.0,0.40608758]
[1733882832115,0.0001716,96030.0,96029.0,0.47858758]
[1733882832329,0.0001716,96040.0,96039.0,0.208248]
[1733882832527,0.0001716,96040.0,96039.0,0.35739804]
[1733882834218,0.0001716,96050.0,96049.0,0.231227]
[1733882834327,0.077,96093.0,96077.0,0.208166]
[1733882834328,0.03285176,96078.0,96077.0,0.208166]
[1733882835440,0.03285176,96078.0,96075.0,0.20817]
[1733882835630,0.03285176,96078.0,96076.0,0.0416347]
[1733882835796,0.03285176,96078.0,96077.0,0.208166]
[1733882836019,0.03285176,96078.0,96075.0,0.20817]
[1733882836394,0.00033662,96080.0,96075.0,0.20817]
[1733882836738,0.03285176,96078.0,96077.0,0.210166]
[1733882836969,0.03285176,96078.0,96077.0,0.06570415]
[1733882837173,0.00033662,96080.0,96038.0,0.24317223]
[1733882837174,0.03285176,96060.0,96038.0,0.24317223]
[1733882837374,0.03285176,96060.0,96040.0,0.10532524]
[1733882837579,0.03285176,96060.0,96059.0,0.208203]
[1733882837781,0.03285176,96060.0,96040.0,0.10532524]
[1733882837782,0.03285176,96054.0,96040.0,0.10532524]
[1733882838001,0.03285176,96054.0,96050.0,0.416447]
[1733882838378,0.00033662,96080.0,96051.0,0.10532524]
[1733882838678,0.00033662,96080.0,96065.0,0.20819]
[1733882838679,0.03285176,96067.0,96065.0,0.20819]
[1733882839023,0.03285176,96067.0,96066.0,0.020819]
[1733882840810,0.03285176,96067.0,96066.0,0.023819]
[1733882841357,0.03285176,96067.0,96066.0,0.021819]
[1733882841563,0.10985176,96067.0,96066.0,0.001]
[1733882841767,0.31803976,96067.0,96066.0,0.001]
[1733882841979,0.423365,96067.0,96066.0,0.001]
[1733882842185,0.03285176,96044.0,96040.0,0.416491]
[1733882842400,0.03285176,96044.0,96042.0,0.208242]
[1733882843812,0.03285176,96054.0,96041.0,0.0624747]
[1733882844017,0.03285176,96054.0,96039.0,0.01036952]
[1733882844018,0.03285176,96053.0,96051.0,0.208222]
[1733882844417,0.03285176,96060.0,96051.0,0.208222]
[1733882844648,0.03285176,96055.0,96052.0,0.20822]
[1733882844844,0.03285176,96057.0,96056.0,0.20821]
[1733882845481,0.03285176,96053.0,96050.0,0.208224]
[1733882845796,0.03285176,96053.0,96052.0,0.20822]
[1733882847075,0.03285176,96053.0,96052.0,0.21222]
[1733882847341,0.03285176,96053.0,96052.0,0.004]
[1733882847678,0.03285176,96053.0,96052.0,0.006]
[1733882848303,0.10985176,96053.0,96052.0,0.006]
[1733882848791,0.077,96053.0,96052.0,0.006]
[1733882848998,0.10985176,96053.0,96052.0,0.004]
[1733882849325,0.10985176,96053.0,96052.0,0.0252234]
[1733882849531,0.10985176,96053.0,96042.0,0.00016545]
[1733882849733,0.10985176,96053.0,96042.0,0.0106096]
[1733882850575,0.10985176,96053.0,96052.0,0.001]
[1733882850791,0.10985176,96053.0,96042.0,0.0106096]
[1733882851162,0.10985176,96053.0,96042.0,0.0116096]
[1733882851353,0.10985176,96053.0,96042.0,0.0106096]
[1733882851555,0.03285176,96044.0,96043.0,0.04271972]
[1733882851893,0.03285176,96044.0,96042.0,0.0106096]
[1733882851894,0.03285176,96044.0,96042.0,0.00016545]
[1733882852088,0.03285176,96043.0,96042.0,0.00016545]
[1733882852745,0.03285176,96043.0,96042.0,0.20840745]
[1733882852947,0.077,96053.0,96042.0,0.20840745]
[1733882852948,0.03285176,96048.0,96044.0,0.208237]
[1733882853239,0.03285176,96048.0,96044.0,0.416474]
[1733882853592,0.03285176,96045.0,96044.0,0.416474]
[1733882853911,0.03285176,96045.0,96044.0,0.06354365]
[1733882854123,0.03285176,96045.0,96042.0,0.00516545]
[1733882854325,0.03285176,96045.0,96042.0,0.00016545]
[1733882854710,0.03285176,96045.0,96044.0,0.003]
[1733882855829,0.03285176,96045.0,96044.0,0.004]
[1733882856031,0.03285176,96048.0,96044.0,0.001]
[1733882856277,0.03285176,96048.0,96045.0,0.25105435]
[1733882856482,0.289,96062.0,96053.0,0.208218]
[1733882856483,0.03285176,96054.0,96053.0,0.208218]
[1733882856646,0.03285176,96054.0,96045.0,0.04281935]
[1733882856848,0.03285176,96054.0,96044.0,0.002]
[1733882856849,0.03285176,96055.0,96044.0,0.006]
[1733882857050,0.03285176,96055.0,96045.0,0.208235]
[1733882857255,0.03285176,96053.0,96042.0,0.00016545]
[1733882857453,0.03285176,96053.0,96049.0,0.208226]
[1733882858266,0.03285176,96055.0,96051.0,0.208222]
[1733882858512,0.03285176,96055.0,96052.0,0.2291422]
[1733882858973,0.03285176,96055.0,96052.0,0.4373622]
[1733882859172,0.0001712,96060.0,96052.0,0.0209222]
[1733882859353,0.0001712,96060.0,96059.0,0.208205]
[1733882859754,0.0001712,96060.0,96059.0,0.33653024]
[1733882860562,0.0001712,96060.0,96059.0,0.34553024]
[1733882860974,0.0001712,96060.0,96059.0,0.33953024]
[1733882861121,0.0001712,96060.0,96059.0,0.34453024]
[1733882861322,0.0001712,96060.0,96059.0,0.34853024]
[1733882861596,0.0001712,96060.0,96059.0,0.43290596]
[1733882861951,0.0001712,96060.0,96059.0,0.44348976]
[1733882862160,0.0001712,96060.0,96059.0,0.49068976]
[1733882862713,0.0001712,96060.0,96059.0,0.47868976]
[1733882862869,0.0001712,96060.0,96059.0,0.58099614]
[1733882863257,0.0001712,96060.0,96059.0,0.57699614]
[1733882863429,0.0001712,96060.0,96059.0,0.48368976]
[1733882863637,0.0001712,96060.0,96059.0,0.49268976]
[1733882863840,0.0001712,96060.0,96059.0,0.48768976]
[1733882864244,0.0001712,96060.0,96059.0,0.49468976]
[1733882865579,0.0001712,96080.0,96079.0,0.208162]
[1733882866243,0.0001712,96080.0,96079.0,0.33648724]
[1733882866855,0.00033662,96080.0,96079.0,0.34727335]
[1733882867474,0.00033662,96080.0,96079.0,0.35327335]
[1733882867677,0.00033662,96080.0,96079.0,0.40094236]
[1733882868252,0.00033662,96080.0,96079.0,0.48374236]
[1733882868977,0.00033662,96080.0,96079.0,0.47874236]
[1733882869401,0.00033662,96080.0,96079.0,0.6018906]
[1733882869631,0.00033662,96080.0,96079.0,0.49174236]
[1733882869801,0.00033662,96080.0,96079.0,0.40294236]
[1733882870013,0.00033662,96080.0,96079.0,0.39594236]
[1733882870245,0.00033662,96080.0,96079.0,0.41094236]
[1733882870857,0.00033662,96080.0,96079.0,0.28261712]
[1733882872199,0.00033662,96080.0,96079.0,0.27661712]
[1733882872416,0.00033662,96080.0,96079.0,0.38394236]
[1733882872621,0.00033662,96080.0,96079.0,0.37494236]
[1733882872829,0.00033662,96080.0,96079.0,0.39794236]
[1733882873031,0.00033662,96080.0,96079.0,0.39594236]
[1733882873261,0.00033662,96080.0,96079.0,0.39894236]
[1733882873531,0.00033662,96080.0,96079.0,0.40494236]
[1733882873735,0.00033662,96080.0,96079.0,0.40194236]
[1733882874148,0.00033662,96080.0,96079.0,0.40594236]
[1733882874352,0.00033662,96080.0,96079.0,0.39994236]
[1733882874815,0.00033662,96080.0,96079.0,0.40794236]
[1733882875663,0.00033662,96080.0,96079.0,0.40394236]
[1733882875888,0.00033662,96080.0,96079.0,0.40794236]
[1733882876087,0.03318838,96080.0,96079.0,0.06345512]
[1733882876304,0.03318838,96080.0,96079.0,0.02278611]
[1733882876522,0.03318838,96080.0,96079.0,0.01878611]
[1733882876947,0.03318838,96080.0,96079.0,0.01078611]
[1733882877168,0.03318838,96080.0,96079.0,0.01478611]
[1733882877430,0.03318838,96080.0,96079.0,0.004]
[1733882877652,0.03318838,96080.0,96079.0,0.0550337]
[1733882877871,0.03318838,96080.0,96079.0,0.0460337]
[1733882878725,0.03318838,96080.0,96079.0,0.0420337]
[1733882878921,0.03318838,96080.0,96079.0,0.0460337]
[1733882879453,0.03318838,96080.0,96079.0,0.0420337]
[1733882879655,0.03318838,96080.0,96079.0,0.011]
[1733882879881,0.11528838,96080.0,96079.0,0.011]
[1733882880055,0.12004391,96080.0,96079.0,0.003]
[1733882880238,0.12004391,96080.0,96079.0,0.01]
[1733882880440,0.12004391,96080.0,96079.0,0.007]
[1733882880653,0.12004391,96080.0,96051.0,0.208222]
[1733882880654,0.03285176,96053.0,96051.0,0.208222]
[1733882880945,0.03285176,96052.0,96051.0,0.208222]
[1733882882677,0.03285176,96052.0,96051.0,0.212222]
[1733882882886,0.03285176,96070.0,96053.0,0.208218]
[1733882883097,0.03285176,96072.0,96069.0,0.208183]
[1733882883312,0.03285176,96072.0,96070.0,0.0208183]
[1733882884516,0.03285176,96072.0,96071.0,0.208179]
[1733882884928,0.03285176,96077.0,96073.0,0.208175]
[1733882885389,0.00033662,96080.0,96079.0,0.208162]
[1733882885607,0.00033662,96080.0,96079.0,0.2706129]
[1733882885983,0.00033662,96080.0,96079.0,0.2936129]
[1733882886979,0.00033662,96080.0,96079.0,0.3016129]
[1733882887670,0.00033662,96080.0,96079.0,0.2956129]
[1733882887850,0.00033662,96080.0,96079.0,0.30631743]
[1733882888050,0.00033662,96080.0,96079.0,0.41964267]
[1733882888295,0.00033662,96080.0,96079.0,0.41764267]
[1733882888509,0.00033662,96080.0,96079.0,0.54444267]
[1733882888787,0.00033662,96080.0,96079.0,0.54744267]
[1733882889137,0.00033662,96080.0,96079.0,0.54444267]
[1733882889612,0.00033662,96080.0,96079.0,0.55144267]
[1733882890022,0.00033662,96080.0,96079.0,0.53644267]
[1733882890240,0.00033662,96080.0,96079.0,0.54544267]
[1733882890435,0.0001712,96100.0,96091.0,0.231136]
[1733882890578,0.0001712,96100.0,96091.0,0.35957484]
[1733882890992,0.0001712,96100.0,96091.0,0.50957484]
[1733882891630,0.0001712,96100.0,96092.0,0.15]
[1733882891846,0.0001712,96100.0,96099.0,0.208118]
[1733882892058,0.0001712,96100.0,96099.0,0.33644324]
[1733882892279,0.0001712,96100.0,96099.0,0.40589976]
[1733882892721,0.03285176,96125.0,96124.0,0.208064]
[1733882894104,0.03340337,96125.0,96124.0,0.208064]
[1733882894309,0.03340337,96125.0,96124.0,0.215064]
[1733882894739,0.03340337,96125.0,96124.0,0.208064]
[1733882895075,0.03340337,96125.0,96124.0,0.2774848]
[1733882895740,0.03340337,96125.0,96124.0,0.38281004]
[1733882895741,0.00055161,96125.0,96124.0,0.38281004]
[1733882895916,0.00055161,96125.0,96124.0,0.40881004]
[1733882896382,0.00055161,96125.0,96124.0,0.40945402]
[1733882896586,0.0001712,96130.0,96129.0,0.208053]
[1733882896786,0.00033654,96130.0,96129.0,0.40233346]
[1733882897298,0.00033654,96130.0,96129.0,0.55233346]
[1733882898014,0.00033654,96130.0,96129.0,0.56133346]
[1733882898215,0.00033654,96130.0,96129.0,0.55233346]
[1733882898421,0.00033654,96130.0,96129.0,0.40233346]
[1733882898657,0.00033654,96130.0,96129.0,0.37933346]
[1733882899359,0.00033654,96130.0,96129.0,0.28100822]
[1733882899699,0.00033654,96130.0,96129.0,0.29000822]
[1733882899902,0.00033654,96130.0,96129.0,0.41833346]
[1733882900376,0.00033654,96130.0,96129.0,0.40233346]
[1733882900710,0.00033654,96130.0,96129.0,0.41133346]
[1733882900913,0.00033654,96130.0,96129.0,0.40233346]
[1733882901341,0.00033654,96130.0,96129.0,0.40533346]
[1733882901499,0.00033654,96130.0,96129.0,0.27700822]
[1733882901699,0.00033654,96130.0,96129.0,0.27400822]
[1733882901903,0.00033654,96130.0,96129.0,0.27800822]
[1733882902302,0.00033654,96130.0,96129.0,0.27400822]
[1733882902746,0.0331883,96130.0,96129.0,0.07195522]
[1733882903122,0.0331883,96130.0,96129.0,0.07495522]
[1733882903321,0.03285176,96129.0,96128.0,0.208053]
[1733882905344,0.03285176,96129.0,96128.0,0.214053]
[1733882906095,0.00033654,96130.0,96128.0,0.214053]
[1733882906514,0.00033654,96130.0,96128.0,0.212053]
[1733882906876,0.00033654,96130.0,96129.0,0.0430761]
[1733882908227,0.00033654,96130.0,96129.0,0.0520761]
[1733882908357,0.00033654,96130.0,96129.0,0.17140134]
[1733882908742,0.0144818,96147.0,96144.0,0.20802]
[1733882908984,0.0144818,96147.0,96144.0,0.31334524]
[1733882909212,0.0144818,96147.0,96146.0,0.208016]
[1733882909970,0.0144818,96147.0,96146.0,0.33634124]
[1733882910523,0.0144818,96147.0,96146.0,0.34434124]
[1733882910749,0.0144818,96147.0,96146.0,0.34734124]
[1733882912278,0.0144818,96147.0,96146.0,0.35805313]
[1733882912486,0.0144818,96147.0,96146.0,0.43513213]
[1733882914818,0.04733356,96147.0,96146.0,0.02171189]
[1733882914973,0.13043356,96147.0,96146.0,0.02171189]
[1733882915171,0.13547026,96147.0,96146.0,0.011]
[1733882915609,0.18437026,96147.0,96146.0,0.011]
[1733882916386,0.18437026,96147.0,96140.0,0.01069697]
[1733882916387,0.03285176,96141.0,96140.0,0.01069697]
[1733882916801,0.03285176,96141.0,96133.0,0.208043]
[1733882916802,0.03285176,96134.0,96133.0,0.208043]
[1733882917014,0.00501965,96141.0,96129.0,0.25129444]
[1733882917015,0.03285176,96131.0,96129.0,0.25129444]
[1733882917632,0.03285176,96131.0,96129.0,0.26161599]
[1733882919110,0.03285176,96130.0,96129.0,0.05356299]
[1733882919292,0.03285176,96130.0,96129.0,0.00316534]
[1733882919541,0.03785311,96130.0,96129.0,0.00316534]
[1733882919692,0.03785311,96130.0,96129.0,0.01016534]
[1733882919870,0.00500135,96130.0,96129.0,0.32354358]
[1733882920072,0.00500135,96130.0,96129.0,0.3499709]
[1733882920276,0.0144818,96147.0,96146.0,0.208016]
[1733882920478,0.0144818,96147.0,96146.0,0.31334124]
[1733882921131,0.0144818,96147.0,96146.0,0.208016]
[1733882921708,0.0144818,96147.0,96146.0,0.213016]
[1733882921913,0.0144818,96147.0,96146.0,0.2759224]
[1733882922114,0.13043356,96147.0,96146.0,0.0679064]
[1733882922432,0.13043356,96147.0,96146.0,0.005]
[1733882922433,0.13546407,96147.0,96146.0,0.005]
[1733882922634,0.13546407,96147.0,96146.0,0.007]
[1733882922971,0.13546407,96147.0,96146.0,0.002]
[1733882923112,0.13546407,96147.0,96138.0,0.208033]
[1733882923311,0.13546407,96147.0,96146.0,0.009]
[1733882923696,0.13546407,96147.0,96146.0,0.002]
[1733882923901,0.13546407,96147.0,96139.0,0.0566079]
[1733882924112,0.13546407,96147.0,96146.0,0.006]
[1733882924317,0.03285176,96140.0,96139.0,0.0566079]
[1733882924524,0.03285176,96139.0,96138.0,0.21848035]
[1733882926773,0.03285176,96139.0,96138.0,0.22448035]
[1733882926980,0.0975818,96147.0,96138.0,0.22448035]
[1733882926981,0.0144818,96147.0,96140.0,0.208029]
[1733882927186,0.04733356,96147.0,96146.0,0.208016]
[1733882929082,0.03285176,96143.0,96138.0,0.01344735]
[1733882929285,0.03285176,96139.0,96138.0,0.01344735]
[1733882929686,0.03285176,96139.0,96138.0,0.01044735]
[1733882930132,0.03285176,96134.0,96132.0,0.208046]
[1733882930546,0.03285176,96145.0,96134.0,0.023]
[1733882930747,0.03285176,96145.0,96144.0,0.208021]
[1733882930894,0.0144818,96147.0,96144.0,0.208021]
[1733882930895,0.0144818,96147.0,96144.0,0.52136724]
[1733882931097,0.0144818,96147.0,96145.0,0.10532524]
[1733882931295,0.0144818,96147.0,96146.0,0.231016]
[1733882931524,0.0144818,96147.0,96146.0,0.39077746]
[1733882933094,0.0144818,96147.0,96146.0,0.39277746]
[1733882933696,0.0144818,96147.0,96146.0,0.39577746]
[1733882933902,0.0144818,96147.0,96146.0,0.39277746]
[1733882934333,0.0144818,96147.0,96146.0,0.26845222]
[1733882934772,0.0144818,96147.0,96146.0,0.39677746]
[1733882936751,0.0144818,96147.0,96146.0,0.39477746]
[1733882936930,0.0144818,96147.0,96146.0,0.39777746]
[1733882937142,0.0144818,96147.0,96146.0,0.39377746]
[1733882937567,0.0001712,96180.0,96146.0,0.39377746]
[1733882937568,0.0001712,96180.0,96159.0,0.207988]
[1733882937805,0.0001712,96180.0,96159.0,0.6590751]
[1733882938239,0.0001712,96180.0,96159.0,1.1342607]
[1733882938439,2e-07,96160.0,96159.0,1.2095607]
[1733882938834,0.00016545,96160.0,96159.0,1.4893528]
[1733882939255,0.00016545,96160.0,96159.0,1.23909043]
[1733882939473,0.00016545,96160.0,96159.0,1.26680048]
[1733882940043,0.00016545,96160.0,96159.0,1.27580048]
[1733882940246,0.00016545,96160.0,96159.0,1.26680048]
[1733882940626,0.00016545,96160.0,96159.0,1.27580048]
[1733882941059,0.00016545,96160.0,96159.0,1.24809043]
[1733882941238,0.00016545,96160.0,96159.0,1.28380048]
[1733882941644,0.0001712,96180.0,96179.0,0.207945]
[1733882941900,0.0001712,96180.0,96179.0,0.33406474]
[1733882943250,0.0001712,96180.0,96179.0,0.34606474]
[1733882943454,0.0001712,96180.0,96179.0,0.36906474]
[1733882943780,0.0001712,96180.0,96179.0,0.37952342]
[1733882944444,0.0001712,96180.0,96179.0,0.37552342]
[1733882944643,0.0001712,96180.0,96179.0,0.36752342]
[1733882944844,0.0001712,96180.0,96179.0,0.38252342]
[1733882945017,0.0001712,96180.0,96179.0,0.46562342]
[1733882945625,0.0001712,96180.0,96179.0,0.55872321]
[1733882946220,0.287756,96221.0,96199.0,0.207902]
[1733882946221,0.03285176,96208.0,96199.0,0.207902]
[1733882946430,0.03285176,96211.0,96199.0,0.33401744]
[1733882946883,0.03285176,96216.0,96199.0,0.35701744]
[1733882947468,0.0799,96221.0,96199.0,0.35701744]